fUSD/lending_fUSD_20260512
["ID","MTS","AMOUNT","RATE_DAILY","PERIOD"]
[422081634,1778556633000,-151.97,0.00026356,2]
[422081617,1778556633000,-2400.0,0.000259,9]
[422081627,1778556633000,-4166.5479,0.00026322,2]
[422081616,1778556633000,-150.0,0.00025883,4]
[422081605,1778556633000,-150.0,0.0002509,4]
[422081611,1778556633000,-600.0,0.000256,9]
[422081633,1778556633000,-1352.89756588,0.00026348,2]
[422081600,1778556633000,-219.0,0.00025,2]
[422081603,1778556633000,-156.26,0.00025023,7]
[422081602,1778556633000,-156.72,0.00025023,7]
[422081601,1778556633000,-409.0,0.00025,2]
[422081604,1778556633000,-150.0,0.0002509,4]
[422081612,1778556633000,-150.0,0.00025619,4]
[422081606,1778556633000,-156.72,0.00025205,2]
[422081608,1778556633000,-150.0,0.00025355,4]
[422081609,1778556633000,-156.72,0.00025388,7]
[422081610,1778556633000,-156.26,0.00025388,7]
[422081613,1778556633000,-1200.0,0.000257,9]
[422081615,1778556633000,-1800.0,0.000258,9]
[422081614,1778556633000,-150.0,0.00025751,4]
[422081607,1778556633000,-156.26,0.00025205,2]
[422081632,1778556633000,-622.51937728,0.00026348,2]
[422081651,1778556633000,-500.0,0.00026431,2]
[422081635,1778556633000,-151.53,0.00026356,2]
[422081649,1778556633000,-500.0,0.00026431,2]
[422081655,1778556633000,-500.0,0.00026431,2]
[422081659,1778556633000,-629.44240057,0.00026431,2]
[422081658,1778556633000,-500.0,0.00026431,2]
[422081657,1778556633000,-500.0,0.00026431,2]
[422081656,1778556633000,-624.18827475,0.00026431,2]
[422081653,1778556633000,-500.0,0.00026431,2]
[422081661,1778556633000,-500.0,0.00026431,2]
[422081663,1778556633000,-639.76515166,0.00026431,2]
[422081662,1778556633000,-500.0,0.00026431,2]
[422081664,1778556633000,-131888.15632752,0.00026432,2]
[422081667,1778556633000,-167628.51471383,0.00026432,2]
[422081665,1778556633000,-382830.496,0.00026432,2]
[422081669,1778556633000,-58133.10781619,0.00026432,2]
[422081660,1778556633000,-180.99305519,0.00026431,2]
[422081652,1778556633000,-500.0,0.00026431,2]
[422081666,1778556633000,-34067.68741305,0.00026432,2]
[422081650,1778556633000,-500.0,0.00026431,2]
[422081654,1778556633000,-500.0,0.00026431,2]
[422081636,1778556633000,-151.97,0.0002641,7]
[422081637,1778556633000,-151.53,0.0002641,7]
[422081639,1778556633000,-601.0,0.00026411,2]
[422081638,1778556633000,-2184.0,0.00026411,2]
[422081643,1778556633000,-221.17835822,0.00026422,2]
[422081640,1778556633000,-41982.0,0.00026411,2]
[422081631,1778556633000,-512.08459245,0.00026348,2]
[422081642,1778556633000,-169.96901226,0.00026411,4]
[422081644,1778556633000,-1058.6874709,0.00026431,10]
[422081645,1778556633000,-500.0,0.00026431,2]
[422081647,1778556633000,-500.0,0.00026431,2]
[422081646,1778556633000,-575.54021875,0.00026431,2]
[422081648,1778556633000,-500.0,0.00026431,2]
[422081668,1778556633000,-35529.08892849,0.00026432,2]
[422081641,1778556633000,-247.04107685,0.00026411,4]
[422081678,1778556638000,-156.56,0.00025023,7]
[422081683,1778556638000,-151.82,0.00026246,7]
[422081682,1778556638000,-151.82,0.00026191,2]
[422081676,1778556638000,-156.56,0.00024658,2]
[422081679,1778556638000,-151.82,0.00026027,2]
[422081677,1778556638000,-156.56,0.0002484,7]
[422081680,1778556638000,-151.82,0.00026081,7]
[422081681,1778556638000,-151.82,0.00026136,2]
[422081685,1778556638000,-151.82,0.00026356,2]
[422081684,1778556638000,-151.82,0.00026301,7]
[422081692,1778556638000,-736.12857669,0.00026432,2]
[422081691,1778556638000,-668.61257251,0.00026432,2]
[422081687,1778556638000,-500.0,0.00026431,2]
[422081690,1778556638000,-1749.75029911,0.00026432,2]
[422081689,1778556638000,-156.56,0.00025205,2]
[422081686,1778556638000,-151.82,0.0002641,7]
[422081688,1778556638000,-18181.14941356,0.00026432,2]
[422081944,1778556640000,-181.24419315,0.00026432,2]
[422081943,1778556640000,-156.56,0.00025388,7]
[422081973,1778556643000,-114.26006983,0.00026432,2]
[422081971,1778556643000,-1238.90673358,0.00026432,2]
[422081972,1778556643000,-722.8955016,0.00026432,2]
[422081970,1778556643000,-152.0,0.00026419,7]
[422081977,1778556646000,-144475.11259523,0.00026432,2]
[422081976,1778556646000,-1231.82500311,0.00026432,2]
[422082184,1778556904000,342.0,0.00026817,120]
[422082185,1778557050000,202.97052516,8.135e-05,30]
[422082186,1778557209000,255.0,0.00026817,120]
[422082187,1778557235000,241.79,0.00025643,120]
[422082188,1778557512000,179.0,0.00026817,120]
[422082189,1778557568000,3051.0,0.00027397,120]
[422082192,1778557773000,-250.0,0.00011349,2]
[422082191,1778557773000,-250.0,0.00011349,2]
[422082193,1778557773000,-145.11399453,0.00011969,2]
[422082190,1778557773000,-162.13,0.00010317,2]
[422082194,1778557776000,500.0,0.00027397,120]
[422082195,1778557789000,500.0,0.00027397,120]
[422082196,1778557813000,647.13588957,0.00027397,120]
[422082197,1778557814000,179.0,0.00026798,120]
[422082226,1778557832000,-151.0,0.00018719,2]
[422082229,1778557832000,-151.0,0.00018719,2]
[422082225,1778557832000,-500.0,0.00018719,2]
[422082228,1778557832000,-151.0,0.00018719,2]
[422082230,1778557832000,-151.0,0.00018719,2]
[422082232,1778557832000,-151.0,0.00018719,2]
[422082231,1778557832000,-151.0,0.00018719,2]
[422082227,1778557832000,-151.0,0.00018719,2]
[422082233,1778557832000,-151.0,0.00018719,2]
[422082234,1778557832000,-151.0,0.00018719,2]
[422082245,1778557832000,-150.0,0.00019701,2]
[422082235,1778557832000,-151.0,0.00018719,2]
[422082238,1778557832000,-184.65,0.00019105,2]
[422082243,1778557832000,-797.9,0.00019545,2]
[422082224,1778557832000,-151.0,0.00018719,2]
[422082255,1778557832000,-150.0,0.00019701,2]
[422082249,1778557832000,-150.0,0.00019701,2]
[422082247,1778557832000,-150.0,0.00019701,2]
[422082252,1778557832000,-150.0,0.00019701,2]
[422082253,1778557832000,-150.0,0.00019701,2]
[422082258,1778557832000,-1413.5,0.00019709,2]
[422082260,1778557832000,-200.0,0.00019815,2]
[422082236,1778557832000,-166.77187727,0.00018719,2]
[422082223,1778557832000,-286.47749038,0.00018719,2]
[422082219,1778557832000,-200.0,0.00018719,2]
[422082217,1778557832000,-2500.0,0.00018082,2]
[422082261,1778557832000,-200.0,0.00019937,2]
[422082199,1778557832000,-104.88600547,0.00011969,2]
[422082201,1778557832000,-250.0,0.00013166,2]
[422082202,1778557832000,-162.13,0.00013622,2]
[422082200,1778557832000,-218.7222448,0.00012796,2]
[422082203,1778557832000,-196.57433668,0.00014,2]
[422082206,1778557832000,-300.0,0.00016,2]
[422082208,1778557832000,-2500.0,0.00016685,2]
[422082204,1778557832000,-53.42566332,0.00014,2]
[422082205,1778557832000,-164.53,0.00015988,2]
[422082222,1778557832000,-500.0,0.00018719,2]
[422082209,1778557832000,-162.13,0.00016926,2]
[422082207,1778557832000,-534.4,0.00016438,2]
[422082211,1778557832000,-300.0,0.0001808,2]
[422082212,1778557832000,-250.0,0.0001808,2]
[422082213,1778557832000,-300.0,0.0001808,2]
[422082215,1778557832000,-150.0,0.00018081,2]
[422082218,1778557832000,-534.4,0.0001841,2]
[422082216,1778557832000,-18962.12,0.00018081,2]
[422082220,1778557832000,-500.0,0.00018719,2]
[422082221,1778557832000,-500.0,0.00018719,2]
[422082214,1778557832000,-601.0,0.0001808,2]
[422082210,1778557832000,-2500.0,0.00017588,2]
[422082264,1778557832000,-1852.42,0.00019999,2]
[422082240,1778557832000,-200.0,0.00019267,2]
[422082266,1778557832000,-152.0,0.0002,2]
[422082308,1778557832000,-500.0,0.00020887,4]
[422082309,1778557832000,-465.74461559,0.00020887,4]
[422082310,1778557832000,-500.0,0.00020887,4]
[422082311,1778557832000,-500.0,0.00020887,4]
[422082313,1778557832000,-500.0,0.00020887,4]
[422082312,1778557832000,-500.0,0.00020887,4]
[422082314,1778557832000,-500.0,0.00020887,4]
[422082316,1778557832000,-500.0,0.00020887,4]
[422082315,1778557832000,-500.0,0.00020887,4]
[422082318,1778557832000,-500.0,0.00020887,4]
[422082307,1778557832000,-500.0,0.00020887,4]
[422082319,1778557832000,-338.72809111,0.00020887,4]
[422082321,1778557832000,-500.0,0.00020887,4]
[422082323,1778557832000,-220.80068816,0.00020887,4]
[422082322,1778557832000,-252.45324732,0.00020887,4]
[422082325,1778557832000,-152.0,0.00020954,2]
[422082326,1778557832000,-266.36,0.00021,2]
[422082324,1778557832000,-152.0,0.00020948,2]
[422082328,1778557832000,-642.0,0.00021,2]
[422082327,1778557832000,-338.0,0.00021,2]
[422082329,1778557832000,-180.0,0.00021,2]
[422082275,1778557832000,-180.0,0.0002,2]
[422082320,1778557832000,-500.0,0.00020887,4]
[422082302,1778557832000,-500.0,0.00020887,4]
[422082317,1778557832000,-500.0,0.00020887,4]
[422082305,1778557832000,-500.0,0.00020887,4]
[422082306,1778557832000,-500.0,0.00020887,4]
[422082279,1778557832000,-500.0,0.0002,2]
[422082277,1778557832000,-151.0,0.0002,2]
[422082281,1778557832000,-152.0,0.00020104,2]
[422082268,1778557832000,-159.0,0.0002,2]
[422082272,1778557832000,-642.0,0.0002,2]
[422082270,1778557832000,-338.0,0.0002,2]
[422082287,1778557832000,-317.36,0.00020276,2]
[422082285,1778557832000,-500.0,0.00020274,2]
[422082330,1778557832000,-151.0,0.00021,2]
[422082291,1778557832000,-150.0,0.00020431,4]
[422082289,1778557832000,-200.0,0.00020363,2]
[422082283,1778557832000,-162.13,0.0002023,2]
[422082290,1778557832000,-534.4,0.00020381,2]
[422082304,1778557832000,-500.0,0.00020887,4]
[422082300,1778557832000,-500.0,0.00020887,4]
[422082301,1778557832000,-500.0,0.00020887,4]
[422082296,1778557832000,-317.36,0.00020783,2]
[422082297,1778557832000,-500.0,0.00020887,4]
[422082303,1778557832000,-500.0,0.00020887,4]
[422082293,1778557832000,-152.99,0.00020446,2]
[422082295,1778557832000,-241.79,0.00020514,2]
[422082299,1778557832000,-500.0,0.00020887,4]
[422082298,1778557832000,-500.0,0.00020887,4]
[422082343,1778557833000,-500.0,0.00021625,2]
[422082356,1778557833000,-1084.14871397,0.000218,7]
[422082353,1778557833000,-298.0128498,0.00021797,2]
[422082352,1778557833000,-19.3471502,0.00021797,2]
[422082351,1778557833000,-536.29533867,0.0002176,2]
[422082350,1778557833000,-1400.0,0.000217,7]
[422082349,1778557833000,-515.72234033,0.00021625,2]
[422082346,1778557833000,-500.0,0.00021625,2]
[422082348,1778557833000,-506.44330256,0.00021625,2]
[422082347,1778557833000,-500.0,0.00021625,2]
[422082345,1778557833000,-500.0,0.00021625,2]
[422082331,1778557833000,-150.0,0.00021161,4]
[422082344,1778557833000,-500.0,0.00021625,2]
[422082341,1778557833000,-268.87677318,0.00021625,2]
[422082340,1778557833000,-513.31108128,0.00021625,2]
[422082339,1778557833000,-150.0,0.00021625,2]
[422082338,1778557833000,-500.0,0.00021625,2]
[422082336,1778557833000,-150.0,0.00021625,2]
[422082335,1778557833000,-150.0,0.00021625,2]
[422082332,1778557833000,-317.36,0.0002129,2]
[422082333,1778557833000,-220.59,0.00021438,2]
[422082334,1778557833000,-700.0,0.000216,7]
[422082337,1778557833000,-150.0,0.00021625,2]
[422082358,1778557833000,-341.3897283,0.000218,2]
[422082342,1778557833000,-500.0,0.00021625,2]
[422082355,1778557833000,-793.0,0.000218,7]
[422082360,1778557833000,-434.45001652,0.0002189,2]
[422082354,1778557833000,-322.85128603,0.000218,7]
[422082357,1778557833000,-308.04129813,0.000218,5]
[422082373,1778557833000,-500.0,0.00021899,2]
[422082379,1778557833000,-322.12705592,0.00021899,2]
[422082376,1778557833000,-519.47334472,0.00021899,2]
[422082378,1778557833000,-500.0,0.00021899,2]
[422082380,1778557833000,-56.66907921,0.00021899,2]
[422082383,1778557833000,-36.68017162,0.00021899,2]
[422082381,1778557833000,-395.02355753,0.00021899,2]
[422082377,1778557833000,-500.0,0.00021899,2]
[422082375,1778557833000,-500.0,0.00021899,2]
[422082374,1778557833000,-500.0,0.00021899,2]
[422082372,1778557833000,-500.0,0.00021899,2]
[422082382,1778557833000,-500.0,0.00021899,2]
[422082367,1778557833000,-509.40931979,0.00021899,2]
[422082371,1778557833000,-500.0,0.00021899,2]
[422082370,1778557833000,-500.0,0.00021899,2]
[422082362,1778557833000,-150.0,0.0002189,4]
[422082366,1778557833000,-649.64293895,0.00021899,2]
[422082361,1778557833000,-150.0,0.0002189,4]
[422082364,1778557833000,-523.00280351,0.00021899,2]
[422082363,1778557833000,-150.0,0.0002189,4]
[422082368,1778557833000,-500.0,0.00021899,2]
[422082369,1778557833000,-500.0,0.00021899,2]
[422082365,1778557833000,-476.99719649,0.00021899,2]
[422082359,1778557833000,-560.26743957,0.000218,2]
[422082406,1778557838000,-500.0,0.00021899,2]
[422082415,1778557838000,-500.0,0.00021899,2]
[422082407,1778557838000,-500.0,0.00021899,2]
[422082409,1778557838000,-500.0,0.00021899,2]
[422082408,1778557838000,-500.0,0.00021899,2]
[422082411,1778557838000,-308.55299093,0.00021899,2]
[422082413,1778557838000,-500.60576138,0.00021899,2]
[422082412,1778557838000,-501.35721413,0.00021899,2]
[422082414,1778557838000,-500.0,0.00021899,2]
[422082421,1778557838000,-45653.40913029,0.000219,2]
[422082419,1778557838000,-75003.20399918,0.000219,2]
[422082416,1778557838000,-500.0,0.00021899,2]
[422082420,1778557838000,-3501.60150192,0.000219,2]
[422082418,1778557838000,-2900.0,0.000219,7]
[422082422,1778557838000,-2375841.78536861,0.000219,2]
[422082425,1778557838000,-164.63,0.00021963,2]
[422082424,1778557838000,-5000.0,0.00021918,2]
[422082399,1778557838000,-500.0,0.00021899,2]
[422082417,1778557838000,-500.0,0.00021899,2]
[422082405,1778557838000,-500.0,0.00021899,2]
[422082392,1778557838000,-500.0,0.00021899,2]
[422082410,1778557838000,-500.0,0.00021899,2]
[422082423,1778557838000,-625.62,0.000219,2]
[422082384,1778557838000,-143.78519224,0.00021899,2]
[422082385,1778557838000,-181.04915562,0.00021899,2]
[422082387,1778557838000,-404.41835019,0.00021899,2]
[422082386,1778557838000,-500.0,0.00021899,2]
[422082397,1778557838000,-503.03927603,0.00021899,2]
[422082389,1778557838000,-500.0,0.00021899,2]
[422082390,1778557838000,-500.0,0.00021899,2]
[422082388,1778557838000,-500.0,0.00021899,2]
[422082393,1778557838000,-500.0,0.00021899,2]
[422082396,1778557838000,-500.0,0.00021899,2]
[422082395,1778557838000,-500.0,0.00021899,2]
[422082391,1778557838000,-189.4649824,0.00021899,2]
[422082394,1778557838000,-500.0,0.00021899,2]
[422082398,1778557838000,-500.0,0.00021899,2]
[422082400,1778557838000,-500.0,0.00021899,2]
[422082403,1778557838000,-500.0,0.00021899,2]
[422082402,1778557838000,-500.0,0.00021899,2]
[422082401,1778557838000,-500.0,0.00021899,2]
[422082404,1778557838000,-500.0,0.00021899,2]
[422082435,1778557838000,-175.59,0.00022149,2]
[422082455,1778557838000,-500.0,0.00023973,2]
[422082431,1778557838000,-167.51488147,0.00022,2]
[422082462,1778557838000,-1927.75419801,0.00023973,2]
[422082466,1778557838000,-198.9478662,0.00023973,4]
[422082464,1778557838000,-1767.19564437,0.00023973,2]
[422082468,1778557838000,-338.0,0.00024,2]
[422082471,1778557838000,-642.0,0.00024,2]
[422082473,1778557838000,-180.0,0.00024,2]
[422082477,1778557838000,-434.45001652,0.00024054,2]
[422082479,1778557838000,-1396794.0334,0.00024064,2]
[422082460,1778557838000,-19107.03333196,0.00023973,2]
[422082481,1778557838000,-500.0,0.00024073,2]
[422082488,1778557838000,-500.0,0.00024073,2]
[422082483,1778557838000,-201.07212832,0.00024073,2]
[422082485,1778557838000,-500.0,0.00024073,2]
[422082487,1778557838000,-500.62640559,0.00024073,2]
[422082490,1778557838000,-739.14,0.00024174,2]
[422082491,1778557838000,-900.24,0.00024174,2]
[422082492,1778557838000,-625.62,0.000242,7]
[422082427,1778557838000,-338.0,0.00022,2]
[422082475,1778557838000,-166.66,0.00024027,30]
[422082458,1778557838000,-500.0,0.00023973,2]
[422082489,1778557838000,-500.0,0.00024073,2]
[422082493,1778557838000,-477.88,0.00024219,2]
[422082428,1778557838000,-642.0,0.00022,2]
[422082451,1778557838000,-3700.0,0.000239,8]
[422082437,1778557838000,-560.26743951,0.00022298,2]
[422082433,1778557838000,-159.12149319,0.00022015,2]
[422082426,1778557838000,-797.9,0.00021988,2]
[422082439,1778557838000,-317.36,0.00022304,2]
[422082441,1778557838000,-152.99,0.00022491,2]
[422082440,1778557838000,-534.4,0.00022353,2]
[422082444,1778557838000,-642.0,0.00023,2]
[422082429,1778557838000,-180.0,0.00022,2]
[422082446,1778557838000,-4000.0,0.00023,30]
[422082448,1778557838000,-150.0,0.00023167,2]
[422082447,1778557838000,-241.79,0.00023079,2]
[422082442,1778557838000,-560.26743951,0.00022796,2]
[422082445,1778557838000,-180.0,0.00023,2]
[422082449,1778557838000,-560.26743951,0.00023295,2]
[422082450,1778557838000,-560.26743951,0.00023793,2]
[422082443,1778557838000,-338.0,0.00023,2]
[422082453,1778557838000,-10000.0,0.00023964,2]
[422082456,1778557838000,-373.27912327,0.00023973,2]
[422082540,1778557839000,-473.33,0.00025041,2]
[422082535,1778557839000,-1577.54,0.0002498,2]
[422082534,1778557839000,-2850.55,0.0002498,5]
[422082542,1778557839000,-7149.97,0.0002509,2]
[422082543,1778557839000,-229.09827524,0.000251,2]
[422082544,1778557839000,-157.26,0.00025114,7]
[422082533,1778557839000,-150.99,0.0002498,2]
[422082527,1778557839000,-9999.99,0.0002498,2]
[422082526,1778557839000,-4999.99,0.0002498,2]
[422082536,1778557839000,-340.0,0.00025,2]
[422082524,1778557839000,-299.99,0.0002498,7]
[422082532,1778557839000,-3481.83,0.0002498,2]
[422082537,1778557839000,-661.0,0.00025,2]
[422082550,1778557839000,-7149.97,0.00025378,7]
[422082539,1778557839000,-166.66,0.00025039,30]
[422082538,1778557839000,-192.0,0.00025,2]
[422082545,1778557839000,-1388.73166699,0.00025168,2]
[422082547,1778557839000,-1500.0,0.00025168,2]
[422082546,1778557839000,-500.0,0.00025168,2]
[422082553,1778557839000,-7149.97,0.00025523,2]
[422082555,1778557839000,-164.63,0.00025587,2]
[422082548,1778557839000,-7149.97,0.00025234,7]
[422082556,1778557839000,-229.09827524,0.000256,2]
[422082552,1778557839000,-519.29639484,0.00025421,2]
[422082549,1778557839000,-560.26743951,0.00025288,2]
[422082551,1778557839000,-229.09827524,0.000254,2]
[422082528,1778557839000,-720.05,0.0002498,2]
[422082541,1778557839000,-1000.0,0.00025068,2]
[422082530,1778557839000,-7647.87,0.0002498,2]
[422082497,1778557839000,-534.4,0.00024324,2]
[422082529,1778557839000,-3010.86,0.0002498,2]
[422082495,1778557839000,-560.26743951,0.00024291,2]
[422082505,1778557839000,-1000.0,0.00024621,2]
[422082506,1778557839000,-158.89,0.00024658,2]
[422082508,1778557839000,-187.62,0.00024658,2]
[422082507,1778557839000,-7149.97,0.00024658,2]
[422082499,1778557839000,-477.88,0.00024493,2]
[422082501,1778557839000,-166.66,0.00024533,30]
[422082498,1778557839000,-797.9,0.00024432,2]
[422082502,1778557839000,-152.99,0.00024535,2]
[422082504,1778557839000,-1000.0,0.00024621,2]
[422082558,1778557839000,-2000.0,0.00025716,2]
[422082500,1778557839000,-1000.0,0.00024521,2]
[422082503,1778557839000,-1000.0,0.00024621,2]
[422082509,1778557839000,-162.87,0.00024658,2]
[422082512,1778557839000,-560.26743951,0.00024789,2]
[422082510,1778557839000,-170.47,0.00024658,2]
[422082511,1778557839000,-477.88,0.00024767,2]
[422082513,1778557839000,-27818.31600882,0.00024802,2]
[422082515,1778557839000,-190.17,0.00024802,7]
[422082514,1778557839000,-7149.97,0.00024802,7]
[422082516,1778557839000,-187.62,0.00024802,7]
[422082517,1778557839000,-160.0,0.00024868,2]
[422082518,1778557839000,-208.2157166,0.00024868,2]
[422082519,1778557839000,-214.86625456,0.00024868,2]
[422082531,1778557839000,-4142.47,0.0002498,2]
[422082521,1778557839000,-501.20980551,0.00024873,2]
[422082520,1778557839000,-500.0,0.00024873,2]
[422082522,1778557839000,-229.09827524,0.000249,2]
[422082523,1778557839000,-7149.97,0.00024946,2]
[422082525,1778557839000,-520.09,0.0002498,2]
[422082554,1778557839000,-166.66,0.00025545,30]
[422082557,1778557839000,-7149.97,0.00025667,7]
[422082563,1778557839000,-779.95588808,0.00025787,2]
[422082597,1778557839000,-779.95588808,0.00026285,2]
[422082592,1778557839000,-7149.97,0.00026243,7]
[422082596,1778557839000,-560.26743951,0.00026284,2]
[422082598,1778557839000,-4766.64,0.00026286,2]
[422082591,1778557839000,-156.35,0.00026241,7]
[422082593,1778557839000,-4766.64,0.00026257,2]
[422082609,1778557839000,-3286.4561764,0.00026384,2]
[422082602,1778557839000,-156.35,0.00026308,7]
[422082611,1778557839000,-614093.3443471,0.00026384,2]
[422082610,1778557839000,-12147.0444994,0.00026384,2]
[422082600,1778557839000,-154.3164136,0.000263,2]
[422082601,1778557839000,-154.31641359,0.000263,2]
[422082603,1778557839000,-159.1,0.0002631,30]
[422082604,1778557839000,-4766.64,0.00026315,7]
[422082606,1778557839000,-4766.64,0.00026344,7]
[422082607,1778557839000,-4766.64,0.00026373,2]
[422082608,1778557839000,-156.35,0.00026375,2]
[422082605,1778557839000,-156.35,0.00026341,2]
[422082613,1778557839000,-109770.7692978,0.00026384,2]
[422082612,1778557839000,-29051.9481611,0.00026384,2]
[422082617,1778557839000,-151.0,0.00026384,2]
[422082616,1778557839000,-5259.9149466,0.00026384,2]
[422082620,1778557839000,-269.189159,0.00026384,2]
[422082614,1778557839000,-151.0,0.00026384,2]
[422082618,1778557839000,-151.0,0.00026384,2]
[422082615,1778557839000,-246.469525,0.00026384,2]
[422082559,1778557839000,-280.79,0.00025786,2]
[422082619,1778557839000,-269.189159,0.00026384,2]
[422082621,1778557839000,-269.189159,0.00026384,2]
[422082599,1778557839000,-534.4,0.00026296,2]
[422082594,1778557839000,-503.36256891,0.00026264,2]
[422082622,1778557839000,-151.0,0.00026384,2]
[422082589,1778557839000,-162.87,0.00026222,7]
[422082590,1778557839000,-4766.64,0.00026229,7]
[422082567,1778557839000,-229.09827524,0.000259,2]
[422082566,1778557839000,-159.12149317,0.00025826,2]
[422082562,1778557839000,-560.26743951,0.00025786,2]
[422082565,1778557839000,-7149.97,0.00025811,2]
[422082570,1778557839000,-4766.64,0.00026027,2]
[422082560,1778557839000,-739.14,0.00025786,2]
[422082564,1778557839000,-625.62,0.000258,7]
[422082569,1778557839000,-162.7,0.00026027,2]
[422082571,1778557839000,-162.87,0.00026046,2]
[422082568,1778557839000,-7149.97,0.00025955,2]
[422082573,1778557839000,-166.66,0.00026051,30]
[422082572,1778557839000,-159.1,0.00026046,2]
[422082584,1778557839000,-4766.64,0.00026171,7]
[422082561,1778557839000,-900.24,0.00025786,2]
[422082574,1778557839000,-4766.64,0.00026055,7]
[422082583,1778557839000,-22593.93511509,0.0002617,2]
[422082588,1778557839000,-156.35,0.00026208,7]
[422082586,1778557839000,-159.1,0.00026178,7]
[422082587,1778557839000,-4766.64,0.000262,2]
[422082578,1778557839000,-7149.97,0.00026099,7]
[422082577,1778557839000,-4766.64,0.00026084,2]
[422082595,1778557839000,-156.35,0.00026275,2]
[422082579,1778557839000,-156.35,0.00026108,7]
[422082576,1778557839000,-156.35,0.00026075,2]
[422082582,1778557839000,-4766.64,0.00026142,7]
[422082585,1778557839000,-156.35,0.00026175,2]
[422082581,1778557839000,-156.35,0.00026141,2]
[422082575,1778557839000,-154.78,0.00026071,2]
[422082580,1778557839000,-4766.64,0.00026113,2]
[422082664,1778557840000,-4766.64,0.00026517,7]
[422082661,1778557840000,-156.35,0.00026475,2]
[422082665,1778557840000,-7149.97,0.00026532,7]
[422082666,1778557840000,-156.35,0.00026541,2]
[422082662,1778557840000,-4766.64,0.00026488,7]
[422082658,1778557840000,-4766.64,0.00026459,2]
[422082659,1778557840000,-289.55339026,0.00026473,2]
[422082656,1778557840000,-159.1,0.00026443,2]
[422082660,1778557840000,-500.0,0.00026473,2]
[422082663,1778557840000,-156.35,0.00026508,7]
[422082667,1778557840000,-4766.64,0.00026546,2]
[422082657,1778557840000,-152.0,0.00026448,7]
[422082671,1778557840000,-162.88,0.00026575,2]
[422082682,1778557840000,-7149.97,0.00026964,7]
[422082668,1778557840000,-166.66,0.00026556,30]
[422082679,1778557840000,-7149.97,0.0002682,2]
[422082680,1778557840000,-150.0,0.00026849,2]
[422082677,1778557840000,-723.17,0.00026817,30]
[422082674,1778557840000,-5530.0,0.000266,3]
[422082673,1778557840000,-152.99,0.0002658,2]
[422082669,1778557840000,-4766.77,0.00026575,7]
[422082672,1778557840000,-159.14,0.00026575,7]
[422082675,1778557840000,-7149.97,0.00026676,2]
[422082676,1778557840000,-200.0,0.00026817,2]
[422082678,1778557840000,-9185.05,0.00026817,30]
[422082653,1778557840000,-168.01130534,0.00026432,2]
[422082670,1778557840000,-156.39,0.00026575,2]
[422082650,1778557840000,-156.35,0.00026408,7]
[422082640,1778557840000,-474.041222,0.00026384,2]
[422082648,1778557840000,-162.87,0.00026398,30]
[422082623,1778557840000,-269.189159,0.00026384,2]
[422082637,1778557840000,-1136.281255,0.00026384,2]
[422082624,1778557840000,-151.0,0.00026384,2]
[422082634,1778557840000,-769.8167232,0.00026384,2]